[Event "45th FIDE Olympiad 2024"]
[Site "Budapest"]
[Date "2024.09.16"]
[Round "6.20"]
[White "Vokhidov, Shamsiddin"]
[Black "Smirin, Ilia"]
[Result "1/2-1/2"]
[ECO "B30"]
[WhiteElo "2650"]
[BlackElo "2575"]
[Annotator "TA"]
[PlyCount "123"]
[EventDate "2024.09.05"]
[EventType "team-tourn"]
[EventCountry "HUN"]
[SourceTitle "playchess.com"]
[Source "ChessBase"]
[SourceQuality "1"]
[WhiteTeam "Uzbekistan"]
[BlackTeam "Israel"]
[WhiteTeamCountry "UZB"]
[BlackTeamCountry "ISR"]
[TimeControl "40/5400+30:1800+30"]

{[%evp 65,123,4,30,6,9,10,9,9,14,0,0,0,145,138,145,137,114,8,8,8,8,8,8,8,8,8,8,8,8,8,8,8,37,37,178,178,177,162,175,153,153,0,0,0,0,0,0,0,0,0,0,0,0,0,0,0,0,0,0,0]} 1. e4 {[%emt 0:00:04]} c5 {[%emt 0:02:42]} 2. Nf3 {[%emt 0:00:06]} Nc6 {[%emt 0:00:15]} 3. Bb5 {[%emt 0:00:05]} e6 {[%emt 0:00:29]} 4. Bxc6 {[%emt 0:00:08]} bxc6 {[%emt 0:00:05]} 5. d3 {[%emt 0:00:02]} Qc7 {[%emt 0:01:26]} 6. O-O {[%emt 0:03:47]} Ne7 {[%emt 0:05:02]} 7. h4 $1 {[%emt 0:04:10][%mdl 4] now scores much better than the old 7.Ng5. B30: Sicilian: 2...Nc6 3 Bb5, lines without ...g6.} h5 {[%emt 0:04:36]} 8. e5 {[%emt 0:04:08]} Ng6 {[%emt 0:02:03]} 9. Re1 {[%emt 0:00:28]} f6 $146 {[%emt 0:01:25]} ({Predecessor:} 9... Be7 10. g3 d6 11. Qe2 f6 12. exd6 Bxd6 13. Qe4 Ne7 14. Na3 e5 15. Nc4 Bf5 16. Nxd6+ Qxd6 {0-1 Laux,D (2260)-Sethuraman,S (2610) Menorca op 1st 2022 (2)}) 10. Nbd2 {[%emt 0:06:39]} fxe5 {[%emt 0:03:18]} 11. Qe2 {[%emt 0:03:40]} d6 {[%emt 0:07:20]} 12. Nc4 {[%emt 0:10:13]} Ne7 {[%emt 0:03:08]} 13. Bg5 {[%emt 0:10:29]} Nf5 {[%emt 0:03:06]} 14. c3 {[%emt 0:03:08]} Be7 {[%emt 0:02:32]} 15. Bxe7 {[%emt 0:00:44]} Qxe7 {[%emt 0:01:21]} 16. g3 {[%emt 0:04:15]} O-O {[%emt 0:06:42]} 17. Ng5 {[%emt 0:03:11]} g6 {[%emt 0:03:13]} 18. Rad1 {[%emt 0:01:17]} Ba6 {[%emt 0:02:11]} 19. Ne3 {[%emt 0:02:21]} Rae8 {[%emt 0:04:13]} 20. Qc2 {[%emt 0:00:52]} Kg7 {[%emt 0:03:52]} 21. d4 {[%emt 0:05:44]} cxd4 {[%emt 0:06:37]} 22. Nxf5+ {[%emt 0:00:04]} exf5 {[%emt 0:00:52]} 23. cxd4 {[%emt 0:00:02]} e4 {[%emt 0:01:12]} 24. Qxc6 {[%emt 0:02:29]} Bb7 {[%emt 0:00:15]} 25. Qc3 {[%emt 0:03:35]} Bd5 {[%emt 0:03:28]} 26. Rc1 {[%emt 0:03:41]} Qb7 {[%emt 0:09:14]} 27. Qa5 {[%emt 0:05:38]} Rc8 {[%emt 0:03:20]} 28. b3 {[%emt 0:01:01]} Bg8 {[%emt 0:08:09]} 29. Qd2 {[%emt 0:01:18]} Bd5 {[%emt 0:05:06]} 30. Nh3 {[%emt 0:02:13]} Rxc1 {[%emt 0:01:05]} 31. Rxc1 {[%emt 0:00:02]} Rc8 {[%emt 0:00:05]} 32. Rxc8 {[%emt 0:07:14]} Qxc8 {[%emt 0:00:05]} 33. Qg5 {[%emt 0:00:28]} e3 {[%emt 0:01:38]} 34. Qe7+ {[%emt 0:03:19]} (34. fxe3 Qc1+ 35. Kf2 Qd2+ 36. Kf1 Qg2+ (36... Qxa2 37. Qe7+ Bf7 38. Qxd6 $11) 37. Ke1 Qh1+ (37... Qxh3 $2 38. Qe7+ Bf7 39. Qxd6 $19) 38. Kd2 Qxh3 $19) (34. Qxe3 $5 Qc2 $8 35. Qe7+ Kg8 36. Qe1 $11 (36. Qxd6 $2 Qd1+ 37. Kh2 Qh1#)) 34... Kg8 {[%emt 0:00:11]} 35. Qxe3 {[%emt 0:00:04]} (35. Qxd6 $2 Qc1+ 36. Kh2 Qh1#) 35... Qc2 $1 {[%emt 0:00:14]} 36. Qe1 {[%emt 0:02:07]} Qxa2 {[%emt 0:00:51]} 37. b4 {[%emt 0:01:04]} Qb2 {[%emt 0:03:10]} 38. Nf4 {[%emt 0:02:14]} Be4 {[%emt 0:00:53] [#]} (38... Bf7 $1 $11 {keeps the balance.}) 39. f3 $1 $16 {[%emt 0:04:41]} (39. Nxg6 $6 Qa3 $14) 39... Qxd4+ {[%emt 0:01:01]} 40. Kg2 {[%emt 0:00:10]} Qb2+ {[%emt 0:02:07]} 41. Qf2 {[%emt 0:31:07]} (41. Kf1 $16 Bxf3 42. Qe8+ (42. Nxg6 $2 Qg2#) 42... Kh7 43. Qxg6+ Kh8 44. Qe8+ (44. Nxh5 $2 Qg2+ 45. Ke1 Qe2#) (44. Qxf5 Bg4 $16) (44. Qxd6 Qa1+ 45. Kf2 Bg4 $16) 44... Kh7 45. Qf7+ (45. Nxh5 $2 Qg2+ 46. Ke1 Qg1+ 47. Kd2 Qd1+ 48. Ke3 Bxh5 $19) 45... Qg7 46. Qxf5+ Kg8 47. Qe6+ (47. Nxh5 Qa1+ 48. Kf2 Bxh5 $11) 47... Kh7 48. Kf2 (48. Qxd6 Qxg3 49. Qd3+ Kg8 $14)) 41... Qxf2+ $11 {[%emt 0:03:43]} 42. Kxf2 {[%emt 0:00:00]} Bc6 {[%emt 0:05:31]} 43. Nxg6 {[%emt 0:00:00]} Kg7 {[%emt 0:00:19]} 44. Nf4 {[%emt 0:00:00]} (44. Ne7 $5 Bd7 $8 45. Nd5 $14) 44... Be8 {[%emt 0:00:21]} 45. Ke3 {[%emt 0:00:00]} Kf6 {[%emt 0:01:01]} 46. Kd4 {[%emt 0:00:00]} Bf7 {[%emt 0:01:36]} 47. Ne2 {[%emt 0:00:00]} Ke6 {[%emt 0:05:51]} 48. Nc3 {[%emt 0:00:00]} Kd7 {[%emt 0:07:23]} 49. Ke3 {[%emt 0:00:00]} Kc6 {[%emt 0:01:39]} (49... Ke6 $14) 50. Kf4 $18 {[%emt 0:00:00]} d5 {[%emt 0:02:07]} 51. Kxf5 {[%emt 0:00:00]} d4 {[%emt 0:00:06] [#]} 52. Ne2 $1 {[%emt 0:00:00]} Kd5 {[%emt 0:01:05]} (52... d3 53. Nc3 d2 54. g4) 53. Kf6 $2 {[%emt 0:00:00]} (53. g4 $16 {Kf6 is the strong threat.} Kc4 54. Nf4 Kxb4 (54... d3 $2 55. Nxd3 Kxd3 56. g5 $16) 55. gxh5 (55. Nxh5 $2 d3 $19)) 53... Be8 $11 {[%emt 0:04:34]} 54. g4 {[%emt 0:00:00]} d3 {[%emt 0:00:04]} 55. Nf4+ {[%emt 0:00:00]} Kd4 {[%emt 0:00:56]} 56. Nxd3 $1 {[%emt 0:00:00]} (56. Nxh5 Bxh5 (56... d2 $2 57. Ng7 $19) 57. gxh5 d2 58. h6 d1=Q (58... d1=R $2 59. h7 $18) 59. h7 Qxf3+ 60. Kg7 Qg3+ 61. Kh6 Qxh4+ 62. Kg7 Qg5+ (62... Qxh7+ {is a self mate.} 63. Kxh7 Kc4 64. Kh8 Kxb4 65. Kg8 a5 66. Kg7 Kc5 67. Kh8 a4 68. Kg7 a3 69. Kh7 Kd5 70. Kh6 a2 71. Kg5 a1=Q 72. Kf4 Qa3 73. Kf5 Qf3+ 74. Kg6 Ke6 75. Kh6 Kf6 76. Kh7 Qb7+ 77. Kh8 Qg7#) 63. Kf7 Qh6 64. h8=R Qxh8 65. Ke6 Qe5+ 66. Kf7 Qf5+ 67. Kg7 Ke5 68. b5 Qf6+ 69. Kg8 Qg6+ 70. Kf8 Ke6 71. b6 Qf7#) (56. gxh5 $2 {too greedy.} d2 57. Ke7 d1=Q $19 (57... d1=R 58. Kxe8 Ke3 59. h6 $11)) 56... Kxd3 {[%emt 0:00:18]} 57. g5 {[%emt 0:00:00]} (57. Kg5 $5 Bc6 $8 58. gxh5 Bxf3 59. h6 $11) 57... Bc6 {[%emt 0:00:29]} (57... Ke3 $5 58. g6 $8 Bb5 $11) 58. f4 {[%emt 0:02:06]} Ke4 {[%emt 0:00:38]} 59. f5 $1 {[%emt 0:00:20]} Bd7 {[%emt 0:00:12]} 60. Kg6 {[%emt 0:00:52]} Be8+ {[%emt 0:01:37]} 61. Kf6 {[%emt 0:00:06]} Bd7 {[%emt 0:00:06]} 62. Kg6 {[%emt 0:00:28]} 1/2-1/2

[Event "45th FIDE Olympiad 2024"]
[Site "Budapest"]
[Date "2024.09.16"]
[Round "6.20"]
[White "Shiferaw, Yalemzewde Mekonnen"]
[Black "Mtsetfwa, Philani"]
[Result "1/2-1/2"]
[WhiteElo "2025"]
[BlackElo "1688"]
[PlyCount "117"]
[EventDate "2024.09.05"]
[EventType "team-tourn"]
[EventCountry "HUN"]
[WhiteTeam "Ethiopia"]
[BlackTeam "Eswatini"]
[WhiteTeamCountry "ETH"]
[TimeControl "40/5400+30:1800+30"]

1. c4 e5 2. g3 Nf6 3. Bg2 Bc5 4. Nf3 d6 5. Nc3 O-O 6. O-O Nc6 7. Na4 Be6 8. Nxc5 dxc5 9. b3 e4 10. Ng5 Bf5 11. Bb2 Re8 12. h4 Qd7 13. f3 exf3 14. exf3 Nd4 15. Kh2 Bd3 16. Re1 Nc2 17. Ne4 Nxe4 18. fxe4 Nxe1 19. Qxe1 f5 20. e5 Be4 21. Bh3 Rad8 22. Bc3 Qd3 23. Qf2 b6 24. Re1 Qc2 25. g4 Rd3 26. Re3 Rxe3 27. Qxe3 fxg4 28. Bxg4 Bf5 29. Bf3 Qd3 30. Qf4 Be6 31. Be4 Qe2+ 32. Kg1 Qg4+ 33. Qxg4 Bxg4 34. Bc6 Re7 35. Kg2 Bf5 36. Kf3 Kf7 37. Kf4 Be6 38. d3 Kf8 39. b4 Rf7+ 40. Ke3 Rf1 41. bxc5 bxc5 42. Ba5 Rf7 43. a3 g6 44. Bc3 h6 45. Be4 g5 46. Bg6 Rg7 47. h5 Bf7 48. Bf5 Bxh5 49. e6 Re7 50. Bf6 Re8 51. Ke4 g4 52. Bh4 Kg7 53. Ke5 Bg6 54. Bf6+ Kh7 55. Bxg4 Bxd3 56. Bh5 Bg6 57. Bf3 Bf7 58. e7 Kg6 59. Be4+ 1/2-1/2

[Event "45th FIDE Olympiad 2024"]
[Site "Budapest"]
[Date "2024.09.16"]
[Round "6.21"]
[White "Giri, Anish"]
[Black "Brkic, Ante"]
[Result "1-0"]
[ECO "B90"]
[WhiteElo "2724"]
[BlackElo "2642"]
[Annotator "TA"]
[PlyCount "129"]
[EventDate "2024.09.05"]
[EventType "team-tourn"]
[EventCountry "HUN"]
[SourceTitle "playchess.com"]
[Source "ChessBase"]
[SourceQuality "1"]
[WhiteTeam "Netherlands"]
[BlackTeam "Croatia"]
[WhiteTeamCountry "NED"]
[BlackTeamCountry "CRO"]
[TimeControl "40/5400+30:1800+30"]

{[%evp 33,129,75,75,60,68,64,75,71,66,68,81,68,101,91,105,92,114,107,115,112,109,106,105,95,104,89,99,103,104,87,104,87,93,93,96,95,88,72,80,60,153,143,168,167,200,182,197,197,200,192,280,272,272,258,332,318,338,338,337,336,1016,919,786,657,29951,29951,29950,29953,29952,29952,29954,29955,29957,29959,29958,29958,29961,29962,29963,29964,29962,29958,29959,29960,29961,29960,29959,29961,29959,29961,29955,29959,29961,29962,29971,29972,29968,29962]} 1. e4 {[%emt 0:00:02]} c5 {[%emt 0:00:06]} 2. Nf3 {[%emt 0:00:03]} d6 {[%emt 0:00:05]} 3. d4 {[%emt 0:00:04]} cxd4 {[%emt 0:00:04]} 4. Nxd4 {[%emt 0:00:05]} Nf6 {[%emt 0:00:05]} 5. Nc3 {[%emt 0:00:04]} a6 {[%emt 0:00:03]} 6. Qd3 {[%emt 0:00:10] B90: Sicilian Najdorf: Unusual White 6th moves, 6 Be3 Ng4 and 6 Be3 e5.} g6 {[%emt 0:06:20]} 7. f3 $5 {[%emt 0:00:53][%mdl 4] An interesting side line.} Bg7 {[%emt 0:03:55]} 8. Be3 {[%emt 0:00:22]} Nbd7 {[%emt 0:10:32]} 9. Qd2 {[%emt 0:01:37]} b5 {[%emt 0:16:22]} 10. a4 {[%emt 0:03:51]} bxa4 $146 {[%emt 0:06:01]} ({Predecessor:} 10... b4 11. Nd5 Nxd5 12. exd5 Bb7 13. Nc6 Bxc6 14. dxc6 Ne5 15. Qxb4 Nxc6 16. Qa3 d5 {0-1 Hamdouchi,H (2596)-Nakamura,H (2701) FRA-chT Top 16 Gp Haute 2009 (11)}) 11. Rxa4 {[%emt 0:03:53]} Bb7 {[%emt 0:00:28]} 12. Nb3 {[%emt 0:13:02]} O-O {[%emt 0:01:22]} 13. Be2 {[%emt 0:00:29]} a5 {[%emt 0:18:58]} 14. O-O {[%emt 0:01:48]} Ne5 {[%emt 0:09:35]} 15. Rfa1 {[%emt 0:21:10]} Nc6 {[%emt 0:00:04]} 16. Bb5 {[%emt 0:00:29]} Nd7 {[%emt 0:05:39]} 17. Bxc6 {[%emt 0:01:06]} Bxc6 {[%emt 0:00:01]} 18. Rxa5 {[%emt 0:00:06]} Ne5 {[%emt 0:00:39]} 19. Rxa8 {[%emt 0:06:26]} Bxa8 {[%emt 0:00:02]} 20. Qe2 {[%emt 0:00:07]} Qb8 {[%emt 0:02:04]} 21. Bd4 {[%emt 0:06:21]} Rc8 {[%emt 0:02:16]} 22. Qb5 {[%emt 0:02:18]} Bc6 {[%emt 0:03:51]} 23. Qxb8 {[%emt 0:03:15]} Rxb8 {[%emt 0:00:01]} 24. Ra6 {[%emt 0:02:25]} Bd7 {[%emt 0:01:58]} 25. Nd5 {[%emt 0:03:33]} e6 {[%emt 0:05:13]} 26. Ne3 {[%emt 0:02:56]} Nc6 {[%emt 0:00:22]} 27. Bxg7 {[%emt 0:00:50]} Kxg7 {[%emt 0:00:02]} 28. Nc4 {[%emt 0:09:01]} d5 {[%emt 0:00:47]} 29. Nc5 {[%emt 0:00:47]} dxc4 {[%emt 0:02:33]} 30. Nxd7 {[%emt 0:00:18]} Rc8 {[%emt 0:00:01]} 31. Nb6 {[%emt 0:03:21]} Rc7 {[%emt 0:02:45]} 32. Nxc4 {[%emt 0:02:57]} Nb4 {[%emt 0:00:16]} 33. Ra4 $1 {[%emt 0:00:03]} Nxc2 {[%emt 0:00:15]} (33... Rxc4 $2 {too greedy.} 34. c3 $18) 34. Nd6 {[%emt 0:01:09]} Rc6 {[%emt 0:02:36]} 35. e5 {[%emt 0:05:00]} Ne3 {[%emt 0:00:01]} 36. Kf2 {[%emt 0:01:12]} Nf5 {[%emt 0:00:20] [#]} (36... Nd5 $1 $14) 37. Rc4 $1 $16 {[%emt 0:02:47]} Rb6 {[%emt 0:00:07]} 38. Nxf5+ {[%emt 0:00:10]} gxf5 {[%emt 0:00:21]} 39. b4 {[%emt 0:00:04]} f6 {[%emt 0:00:26]} 40. exf6+ {[%emt 0:02:05]} Kxf6 {[%emt 0:00:01] [#]} 41. f4 $1 {[%emt 0:04:21]} e5 {[%emt 0:03:33]} (41... Ke7 {might work better.} 42. g3 Ra6) 42. fxe5+ $18 {[%emt 0:03:21]} Kxe5 {[%emt 0:00:07]} 43. Ke3 {[%emt 0:07:59]} Kd5 {[%emt 0:09:59]} 44. Rh4 {[%emt 0:00:20]} Rb7 {[%emt 0:04:00]} 45. g3 {[%emt 0:00:36]} Kc6 {[%emt 0:08:32]} 46. Rd4 {[%emt 0:01:55]} Re7+ $2 {[%emt 0:00:54]} (46... h6 47. Rh4 Kd5) 47. Kf4 $18 {[%emt 0:02:18]} Re2 {[%emt 0:00:05]} 48. Kxf5 {[%emt 0:00:24]} Rxh2 {[%emt 0:00:24]} 49. Rh4 {[%emt 0:00:03]} Rf2+ {[%emt 0:00:26]} 50. Kg5 {[%emt 0:02:04]} Rf7 {[%emt 0:02:06]} 51. Kh6 {[%emt 0:00:54]} Kd6 {[%emt 0:01:15]} 52. Rf4 {[%emt 0:01:38]} Rb7 {[%emt 0:00:26]} 53. g4 {[%emt 0:00:04]} Ke5 {[%emt 0:01:25]} 54. Rf5+ {[%emt 0:00:15]} Ke6 {[%emt 0:00:27]} 55. b5 {[%emt 0:00:08]} Ra7 {[%emt 0:00:29]} 56. b6 {[%emt 0:01:29]} Rb7 {[%emt 0:00:15]} 57. Rf1 {[%emt 0:01:35]} Ke5 {[%emt 0:00:42]} 58. g5 {[%emt 0:01:00]} Ke4 {[%emt 0:00:53]} 59. Rf6 {[%emt 0:00:17]} Ke5 {[%emt 0:00:22]} 60. Rc6 {[%emt 0:02:04]} Kf4 {[%emt 0:00:30]} 61. Rc4+ {[%emt 0:00:25]} Kf5 {[%emt 0:00:04]} 62. Rc7 {[%emt 0:02:43]} Rxb6+ {[%emt 0:00:04]} 63. Kh5 $1 {[%emt 0:00:01]} h6 {[%emt 0:02:54]} 64. Rf7+ {[%emt 0:00:05]} ({And not} 64. gxh6 Rb2 65. Rf7+ Ke6 $11) 64... Ke5 {[%emt 0:00:11]} 65. g6 {[%emt 0:00:07]} 1-0

[Event "45th FIDE Olympiad 2024"]
[Site "Budapest"]
[Date "2024.09.16"]
[Round "6.21"]
[White "Fancy, Stuart"]
[Black "Mafaaz, Khalid"]
[Result "0-1"]
[WhiteElo "1921"]
[BlackElo "2069"]
[PlyCount "70"]
[EventDate "2024.09.05"]
[EventType "team-tourn"]
[EventCountry "HUN"]
[WhiteTeam "Papua New Guinea"]
[BlackTeam "Pakistan"]
[WhiteTeamCountry "PNG"]
[BlackTeamCountry "PAK"]
[TimeControl "40/5400+30:1800+30"]

1. e4 e5 2. Nf3 Nc6 3. Bc4 Nf6 4. d4 exd4 5. O-O Nxe4 6. Re1 d5 7. Bxd5 Qxd5 8. Nc3 Qa5 9. Nxe4 Be6 10. Bd2 Qd5 11. Bg5 Bd6 12. Bf6 O-O 13. Nxd4 Nxd4 14. Qxd4 Qxd4 15. Bxd4 Rfd8 16. Nxd6 Rxd6 17. Bc3 b6 18. a3 Rad8 19. f3 h6 20. Kf2 a5 21. Re2 a4 22. g4 Rd5 23. Be5 R8d7 24. Bf4 Rb5 25. c3 Bc4 26. Rc2 g5 27. Be3 f5 28. Re1 Rbd5 29. Bc1 f4 30. h4 Kf7 31. hxg5 hxg5 32. Rh1 Kg6 33. Rh8 Rd1 34. Bxf4 gxf4 35. Rf8 Bd3 {0-} 0-1

[Event "45th FIDE Olympiad 2024"]
[Site "Budapest"]
[Date "2024.09.16"]
[Round "6.22"]
[White "Martinovic, Sasa"]
[Black "Van Foreest, Jorden"]
[Result "0-1"]
[ECO "D15"]
[WhiteElo "2563"]
[BlackElo "2696"]
[Annotator "TA"]
[PlyCount "152"]
[EventDate "2024.09.05"]
[EventType "team-tourn"]
[EventCountry "HUN"]
[SourceTitle "playchess.com"]
[Source "ChessBase"]
[SourceQuality "1"]
[WhiteTeam "Croatia"]
[BlackTeam "Netherlands"]
[WhiteTeamCountry "CRO"]
[BlackTeamCountry "NED"]
[TimeControl "40/5400+30:1800+30"]

{[%evp 54,152,11,0,0,-4,0,-6,-8,-4,-6,-24,-14,-22,-14,-9,-7,-22,-10,-16,-13,-6,0,0,0,-4,-4,-46,-47,-45,-43,-101,-101,-137,-142,-142,-142,-142,-142,-135,-135,-135,-135,-135,-153,-145,-58,-210,-210,-210,-210,-210,-210,-210,-210,-210,-210,-210,-210,-210,-210,-210,-210,-210,-210,-210,-153,-210,-210,-896,-833,-551,-366,-1095,-1772,-29966,-29967,-29969,-29972,-29972,-29973,-29972,-29973,-29973,-29974,-29974,-29974,-29984,-29985,-29987,-29988,-29989,-29990,-29991,-29992,-29992,-29993,-29993,-29984,-29994,-83]} 1. d4 {[%emt 0:00:01]} d5 {[%emt 0:00:10]} 2. c4 {[%emt 0:00:04]} c6 {[%emt 0:00:09]} 3. Nf3 {[%emt 0:00:06]} Nf6 {[%emt 0:00:08]} 4. Nc3 {[%emt 0:00:05]} dxc4 {[%emt 0:00:09]} 5. e4 {[%emt 0:00:08]} b5 {[%emt 0:00:05]} 6. a4 {[%emt 0:00:07]} b4 {[%emt 0:06:29] D15: Slav Defence: 4 Nc3 a6 and gambit lines after 4 Nc3 dxc4.} 7. Na2 {[%emt 0:00:06]} e6 {[%emt 0:01:54]} 8. Bxc4 {[%emt 0:00:06]} Nxe4 {[%emt 0:01:55]} 9. O-O {[%emt 0:00:06]} Be7 {[%emt 0:00:06]} 10. Re1 {[%emt 0:00:50]} Nf6 {[%emt 0:00:44]} 11. Ne5 {[%emt 0:00:50]} O-O {[%emt 0:00:11]} 12. Bg5 {[%emt 0:00:38]} a5 {[%emt 0:03:58]} 13. Nc1 {[%emt 0:01:24]} Nd5 {[%emt 0:05:29]} 14. Bxe7 {[%emt 0:00:17]} Nxe7 {[%emt 0:00:03]} 15. Nb3 $146 {[%emt 0:01:28]} ({Predecessor:} 15. Qg4 Ng6 16. Ncd3 Nd7 17. Rad1 Ndxe5 18. dxe5 Qe7 19. Nf4 Rd8 20. Nxg6 hxg6 21. Rxd8+ Qxd8 {1-0 Hakobyan,A (2619)-Bok,B (2620) Saint Louis Spring-A 2024 (4)}) 15... Nd7 {[%emt 0:00:50]} 16. Bd3 {[%emt 0:05:18]} Nxe5 {[%emt 0:16:37]} 17. Rxe5 {[%emt 0:00:33]} Nd5 {[%emt 0:01:27]} 18. Qc2 {[%emt 0:15:35]} g6 {[%emt 0:00:19]} 19. Qxc6 {[%emt 0:05:59]} Bd7 {[%emt 0:09:23]} 20. Qd6 {[%emt 0:00:09]} Rc8 {[%emt 0:04:57]} 21. Ree1 {[%emt 0:18:57]} Qc7 {[%emt 0:00:57]} 22. Qxc7 {[%emt 0:08:29]} Rxc7 {[%emt 0:00:06]} 23. Nxa5 {[%emt 0:01:23]} Ra8 {[%emt 0:03:02]} 24. Nb3 {[%emt 0:00:21]} Rxa4 {[%emt 0:01:46]} 25. Rxa4 {[%emt 0:10:37]} Bxa4 {[%emt 0:00:07]} 26. Nc5 {[%emt 0:00:02]} Be8 {[%emt 0:03:50]} 27. Ra1 {[%emt 0:01:05]} Kf8 {[%emt 0:00:19]} 28. Ra5 {[%emt 0:10:32]} Rc8 {[%emt 0:02:00]} 29. Be4 {[%emt 0:05:36]} Ne7 {[%emt 0:00:33]} 30. f3 {[%emt 0:04:31]} Rd8 {[%emt 0:05:37]} 31. Nb3 {[%emt 0:01:12]} Bc6 {[%emt 0:00:05]} 32. Kf2 {[%emt 0:02:22]} Bxe4 {[%emt 0:03:00]} 33. fxe4 {[%emt 0:00:01]} Nc6 {[%emt 0:00:15]} 34. Rb5 {[%emt 0:00:16]} Nxd4 {[%emt 0:00:05]} 35. Rxb4 {[%emt 0:01:36]} Nc6 {[%emt 0:00:14]} 36. Rb7 {[%emt 0:03:40]} Ne5 {[%emt 0:00:32]} 37. Ke2 {[%emt 0:03:17]} Nd3 {[%emt 0:03:05]} 38. Na5 {[%emt 0:00:53]} h5 {[%emt 0:05:53]} 39. Ke3 {[%emt 0:00:15]} Ne5 {[%emt 0:01:01]} 40. h3 {[%emt 0:00:54]} Rd3+ {[%emt 0:00:12]} 41. Ke2 {[%emt 0:03:04]} Rg3 {[%emt 0:00:55]} 42. Kf2 {[%emt 0:00:35]} ({Better is} 42. Rb5 $1 $15) 42... h4 $17 {[%emt 0:00:04]} 43. Rb3 {[%emt 0:03:07]} Nc6 $1 {[%emt 0:01:42]} 44. Rb5 {[%emt 0:02:03]} Nxa5 $1 {[%emt 0:02:00]} 45. Rxa5 {[%emt 0:00:01]} Rb3 {[%emt 0:00:06]} 46. Rg5 {[%emt 0:08:46]} Rxb2+ {[%emt 0:02:20]} 47. Kf3 {[%emt 0:00:01]} Rb3+ {[%emt 0:00:56]} 48. Kf2 {[%emt 0:00:41]} Rb4 {[%emt 0:03:28]} 49. Rg4 {[%emt 0:04:59] [#]} g5 {[%emt 0:08:07]} (49... Kg7 $1 $17 {[%mdl 512]} 50. Kf3 f6 51. Rxh4 f5) 50. Rxg5 $2 {[%emt 0:00:15]} (50. g3 $1 $15) 50... Rxe4 $19 {[%emt 0:00:17]} 51. Kf3 {[%emt 0:01:51]} f5 $1 {[%emt 0:00:09]} 52. Rh5 {[%emt 0:00:25]} Kg7 {[%emt 0:01:23]} 53. Rg5+ {[%emt 0:00:06]} Kf6 {[%emt 0:00:29]} 54. Rg8 {[%emt 0:00:32]} Ra4 {[%emt 0:01:26]} 55. Rf8+ {[%emt 0:00:12]} Ke5 {[%emt 0:02:18]} 56. Rh8 {[%emt 0:00:15]} Rb4 {[%emt 0:00:48]} 57. Rh6 {[%emt 0:01:36]} Kd5 {[%emt 0:00:59]} 58. Rh5 {[%emt 0:00:38]} Ra4 {[%emt 0:00:07]} 59. Ke3 {[%emt 0:00:48]} Ra3+ {[%emt 0:03:06]} 60. Kf2 {[%emt 0:00:15] [#]} (60. Kf4 $17) 60... Ra2+ $1 $19 {[%emt 0:00:07]} 61. Kf3 $2 {[%emt 0:00:59] [#]} (61. Kf1 Ra4 62. Kg1) 61... e5 $1 $19 {[%emt 0:05:51]} 62. Rxf5 {[%emt 0:01:48]} Kd4 {[%emt 0:00:06]} 63. Kg4 $2 {[%emt 0:02:06]} (63. g3 Ra3+ 64. Kg2) 63... Rxg2+ $19 {[%emt 0:00:39]} 64. Kxh4 {[%emt 0:00:06]} e4 {[%emt 0:00:04]} 65. Rf8 {[%emt 0:01:15]} e3 {[%emt 0:00:10]} 66. Rd8+ {[%emt 0:06:18]} Kc3 {[%emt 0:00:10]} 67. Rc8+ {[%emt 0:00:22]} Kd2 {[%emt 0:00:08]} 68. Rd8+ {[%emt 0:00:04]} Ke1 {[%emt 0:01:25]} 69. Kh5 {[%emt 0:00:30]} e2 {[%emt 0:00:53]} 70. h4 {[%emt 0:00:18]} Rg3 {[%emt 0:00:24]} 71. Kh6 {[%emt 0:01:10]} Kf2 {[%emt 0:01:21]} 72. Rd2 {[%emt 0:00:32]} Kf1 {[%emt 0:00:09]} 73. Rxe2 {[%emt 0:00:03]} Kxe2 {[%emt 0:00:04]} 74. h5 {[%emt 0:00:02]} Kf3 {[%emt 0:00:10]} 75. Kh7 {[%emt 0:00:03]} Kg4 {[%emt 0:00:13]} 76. h6 {[%emt 0:00:13]} Kf5 {[%emt 0:00:18]} 0-1

[Event "45th FIDE Olympiad 2024"]
[Site "Budapest"]
[Date "2024.09.16"]
[Round "6.22"]
[White "Amer, Karim"]
[Black "McCoy, Tom"]
[Result "1-0"]
[WhiteElo "2081"]
[BlackElo "1883"]
[PlyCount "51"]
[EventDate "2024.09.05"]
[EventType "team-tourn"]
[EventCountry "HUN"]
[WhiteTeam "Pakistan"]
[BlackTeam "Papua New Guinea"]
[WhiteTeamCountry "PAK"]
[BlackTeamCountry "PNG"]
[TimeControl "40/5400+30:1800+30"]

1. d4 e6 2. c4 d5 3. Nc3 a6 4. cxd5 exd5 5. Bf4 c6 6. e3 Bd6 7. Bg3 Ne7 8. Bd3 Bf5 9. Nf3 Bg4 10. O-O O-O 11. Bxh7+ Kh8 12. Bd3 Qc7 13. Rc1 Nd7 14. b4 Nf5 15. Nxd5 Qb8 16. Bxf5 Bxf5 17. Nf4 Nf6 18. Nh4 Bh7 19. Nh5 Ne4 20. Qg4 g5 21. Nf5 Qc8 22. Qxe4 Bxf5 23. Qf3 Be7 24. h3 g4 25. Qf4 Kh7 26. Qe5 1-0